fUSD/lending_fUSD_20241002
["ID","MTS","AMOUNT","RATE_DAILY","PERIOD"]
[339695062,1727869881576,-837.15,0.00022739,2]
[339695063,1727869881585,-449.74199307,0.00022739,2]
[339695064,1727869881595,-512.00081929,0.00022739,2]
[339695065,1727869881605,-500.0,0.00022739,2]
[339695066,1727869881614,-500.0,0.00022739,2]
[339695067,1727869881624,-706.42,0.00022739,2]
[339695068,1727869881634,-1586.71,0.00022739,2]
[339695069,1727869881643,-500.0,0.00022739,2]
[339695070,1727869881653,-2633.91,0.00022739,2]
[339695071,1727869881662,-500.0,0.00022739,2]
[339695072,1727869881671,-1238.3,0.00022739,2]
[339695073,1727869881681,-625.64,0.00022739,2]
[339695074,1727869881690,-500.0,0.00022739,2]
[339695075,1727869881700,-1209.21,0.00022739,2]
[339695076,1727869881709,-1377.7,0.00022739,2]
[339695077,1727869881718,-1229.98,0.00022739,2]
[339695078,1727869881729,-1490.73,0.00022739,2]
[339695079,1727869881738,-500.0,0.00022739,2]
[339695080,1727869881747,-821.89,0.00022739,2]
[339695081,1727869881757,-500.0,0.00022739,2]
[339695082,1727869881768,-2367.9,0.00022739,2]
[339695083,1727869881777,-1174.03,0.00022739,2]
[339695084,1727869881786,-500.0,0.00022739,2]
[339695085,1727869881795,-500.0,0.00022739,2]
[339695086,1727869881806,-500.0,0.00022739,2]
[339695087,1727869881816,-500.0,0.00022739,2]
[339695088,1727869881825,-847.46,0.00022739,2]
[339695089,1727869881835,-500.0,0.00022739,2]
[339695090,1727869881845,-500.0,0.00022739,2]
[339695091,1727869881854,-536.04,0.00022739,2]
[339695092,1727869881863,-500.0,0.00022739,2]
[339695093,1727869881873,-545.49,0.00022739,2]
[339695094,1727869881883,-500.0,0.00022739,2]
[339695095,1727869881892,-718.29,0.00022739,2]
[339695096,1727869881902,-1000.0,0.00022739,2]
[339695097,1727869881911,-669.98,0.00022739,2]
[339695098,1727869881923,-500.0,0.00022739,2]
[339695099,1727869881933,-500.0,0.00022739,2]
[339695100,1727869881943,-596.18,0.00022739,2]
[339695101,1727869881953,-500.0,0.00022739,2]
[339695102,1727869881963,-500.0,0.00022739,2]
[339695103,1727869881972,-731.9,0.00022739,2]
[339695104,1727869881983,-1746.5,0.00022739,2]
[339695105,1727869881992,-1675.75,0.00022739,2]
[339695106,1727869882002,-2492.76,0.00022739,2]
[339695107,1727869882011,-500.0,0.00022739,2]
[339695108,1727869882021,-1021.85,0.00022739,2]
[339695109,1727869882030,-2147.45,0.00022739,2]
[339695110,1727869882040,-666.4,0.00022739,2]
[339695111,1727869882049,-1805.45,0.00022739,2]
[339695112,1727869882060,-500.0,0.00022739,2]
[339695113,1727869882069,-767.65,0.00022739,2]
[339695114,1727869882079,-1399.04,0.00022739,2]
[339695115,1727869882088,-2569.52,0.00022739,2]
[339695116,1727869882097,-3554.36,0.00022739,2]
[339695117,1727869882107,-500.0,0.00022739,2]
[339695118,1727869882117,-1114.6,0.00022739,2]
[339695119,1727869882129,-500.0,0.00022739,2]
[339695120,1727869882139,-2281.6,0.00022739,2]
[339695121,1727869882149,-500.0,0.00022739,2]
[339695122,1727869882159,-2024.94,0.00022739,2]
[339695123,1727869882169,-1898.19,0.00022739,2]
[339695124,1727869882179,-2537.56,0.00022739,2]
[339695125,1727869882189,-500.0,0.00022739,2]
[339695126,1727869882198,-500.0,0.00022739,2]
[339695127,1727869882208,-500.0,0.00022739,2]
[339695128,1727869882217,-628.45,0.00022739,2]
[339695129,1727869882227,-531.82,0.00022739,2]
[339695130,1727869882239,-1115.9,0.00022739,2]
[339695131,1727869882248,-769.35,0.00022739,2]
[339695132,1727869882258,-637.83,0.00022739,2]
[339695133,1727869882268,-1589.06,0.00022739,2]
[339695134,1727869882278,-500.0,0.00022739,2]
[339695135,1727869882287,-690.75,0.00022739,2]
[339695136,1727869882297,-1606.12,0.00022739,2]
[339695137,1727869882306,-2547.67,0.00022739,2]
[339695138,1727869882316,-272.39672641,0.00022739,2]
[339695139,1727869882325,-445.91601311,0.00022739,2]
[339695140,1727869882335,-500.0,0.00022739,2]
[339695141,1727869882345,-833.08,0.00022739,2]
[339695142,1727869882355,-1174.4,0.00022739,2]
[339695143,1727869882365,-500.0,0.00022739,2]
[339695144,1727869882375,-2149.44,0.00022739,2]
[339695145,1727869882384,-628.01,0.00022739,2]
[339695146,1727869882394,-500.0,0.00022739,2]
[339695147,1727869882404,-846.9,0.00022739,2]
[339695148,1727869882414,-863.26,0.00022739,2]
[339695149,1727869882424,-651.99,0.00022739,2]
[339695150,1727869882433,-500.0,0.00022739,2]
[339695151,1727869882443,-500.0,0.00022739,2]
[339695152,1727869882453,-2757.68,0.00022739,2]
[339695153,1727869882463,-500.0,0.00022739,2]
[339695154,1727869882473,-500.0,0.00022739,2]
[339695155,1727869882484,-603.14,0.00022739,2]
[339695156,1727869882493,-1696.1,0.00022739,2]
[339695157,1727869882502,-985.26,0.00022739,2]
[339695158,1727869882512,-500.0,0.00022739,2]
[339695159,1727869882522,-300.0,0.00022739,2]
[339695160,1727869882532,-500.0,0.00022739,2]
[339695161,1727869882542,-653.8,0.00022739,2]
[339695162,1727869882551,-1267.6,0.00022739,2]
[339695163,1727869882561,-3039.66,0.00022739,2]
[339695164,1727869882571,-500.0,0.00022739,2]
[339695165,1727869882581,-500.0,0.00022739,2]
[339695166,1727869882591,-500.0,0.00022739,2]
[339695167,1727869882601,-500.0,0.00022739,2]
[339695168,1727869882611,-1289.3,0.00022739,2]
[339695169,1727869882621,-2047.61,0.00022739,2]
[339695170,1727869882631,-1504.84,0.00022739,2]
[339695171,1727869882641,-981.63,0.00022739,2]
[339695172,1727869882651,-500.0,0.00022739,2]
[339695173,1727869882660,-500.0,0.00022739,2]
[339695174,1727869882670,-854.69,0.00022739,2]
[339695175,1727869882681,-500.0,0.00022739,2]
[339695176,1727869882690,-500.0,0.00022739,2]
[339695177,1727869882700,-500.0,0.00022739,2]
[339695178,1727869882709,-500.0,0.00022739,2]
[339695179,1727869882719,-500.0,0.00022739,2]
[339695180,1727869882730,-1749.84,0.00022739,2]
[339695181,1727869882739,-1355.56,0.00022739,2]
[339695182,1727869882751,-1502.59,0.00022739,2]
[339695183,1727869882760,-1145.46,0.00022739,2]
[339695184,1727869882770,-2100.16,0.00022739,2]
[339695185,1727869882780,-1280.36,0.00022739,2]
[339695186,1727869882790,-268.57832952,0.00022739,2]
[339695187,1727869882799,-3721.85,0.00022739,2]
[339695188,1727869882809,-2297.01,0.00022739,2]
[339695189,1727869882819,-525.24,0.00022739,2]
[339695190,1727869882829,-500.0,0.00022739,2]
[339695191,1727869882839,-500.0,0.00022739,2]
[339695192,1727869882850,-500.0,0.00022739,2]
[339695193,1727869882859,-1550.17,0.00022739,2]
[339695194,1727869882869,-500.0,0.00022739,2]
[339695195,1727869882878,-500.0,0.00022739,2]
[339695196,1727869882888,-1243.26,0.00022739,2]
[339695197,1727869882898,-500.0,0.00022739,2]
[339695198,1727869882908,-500.0,0.00022739,2]
[339695199,1727869882918,-518.73502304,0.00022739,2]
[339695200,1727869882931,-500.0,0.00022739,2]
[339695201,1727869882940,-1732.3,0.00022739,2]
[339695202,1727869882951,-500.0,0.00022739,2]
[339695203,1727869882960,-924.39,0.00022739,2]
[339695204,1727869882971,-500.0,0.00022739,2]
[339695205,1727869882982,-500.0,0.00022739,2]
[339695206,1727869882992,-500.0,0.00022739,2]
[339695207,1727869883003,-1860.9,0.00022739,2]
[339695208,1727869883013,-1136.61,0.00022739,2]
[339695209,1727869883023,-2892.79,0.00022739,2]
[339695210,1727869883032,-500.0,0.00022739,2]
[339695211,1727869883042,-1271.74,0.00022739,2]
[339695212,1727869883052,-2319.1,0.00022739,2]
[339695213,1727869883062,-1091.67,0.00022739,2]
[339695214,1727869883071,-1380.93,0.00022739,2]
[339695215,1727869883081,-516.76,0.00022739,2]
[339695216,1727869883094,-500.0,0.00022739,2]
[339695217,1727869883103,-500.0,0.00022739,2]
[339695218,1727869883113,-500.0,0.00022739,2]
[339695219,1727869883122,-1681.47,0.00022739,2]
[339695220,1727869883133,-551.68,0.00022739,2]
[339695221,1727869883143,-1011.97,0.00022739,2]
[339695222,1727869883153,-500.0,0.00022739,2]
[339695223,1727869883163,-595.76,0.00022739,2]
[339695224,1727869883173,-4234.94,0.00022739,2]
[339695225,1727869883182,-500.0,0.00022739,2]
[339695226,1727869883192,-807.3,0.00022739,2]
[339695227,1727869883203,-767.29,0.00022739,2]
[339695228,1727869883213,-500.0,0.00022739,2]
[339695229,1727869883223,-4437.35,0.00022739,2]
[339695230,1727869883233,-500.0,0.00022739,2]
[339695231,1727869883242,-500.0,0.00022739,2]
[339695232,1727869883252,-681.37,0.00022739,2]
[339695233,1727869883262,-500.0,0.00022739,2]
[339695234,1727869883271,-500.0,0.00022739,2]
[339695235,1727869883281,-810.27,0.00022739,2]
[339695236,1727869883292,-573.56947218,0.00022739,2]
[339695237,1727869883302,-2090.86,0.00022739,2]
[339695238,1727869883311,-500.0,0.00022739,2]
[339695239,1727869883320,-500.0,0.00022739,2]
[339695240,1727869883329,-1313.14,0.00022739,2]
[339695241,1727869883339,-1262.83,0.00022739,2]
[339695242,1727869883348,-1018.63,0.00022739,2]
[339695243,1727869883357,-504.51,0.00022739,2]
[339695244,1727869883367,-570.29,0.00022739,2]
[339695245,1727869883376,-736.45,0.00022739,2]
[339695246,1727869883385,-953.5,0.00022739,2]
[339695247,1727869883395,-598.89,0.00022739,2]
[339695248,1727869883404,-1201.78,0.00022739,2]
[339695249,1727869883414,-500.0,0.00022739,2]
[339695250,1727869883425,-500.0,0.00022739,2]
[339695251,1727869883434,-500.0,0.00022739,2]
[339695252,1727869883444,-4680.19,0.00022739,2]
[339695253,1727869883454,-892.18,0.00022739,2]
[339695254,1727869883463,-679.8,0.00022739,2]
[339695255,1727869883473,-690.14,0.00022739,2]
[339695256,1727869883484,-500.0,0.00022739,2]
[339695257,1727869883493,-500.0,0.00022739,2]
[339695258,1727869883503,-1031.13,0.00022739,2]
[339695259,1727869883512,-500.0,0.00022739,2]
[339695260,1727869883522,-2119.21,0.00022739,2]
[339695261,1727869883532,-3248.18,0.00022739,2]
[339695262,1727869883542,-500.0,0.00022739,2]
[339695263,1727869883555,-500.0,0.00022739,2]
[339695264,1727869883571,-175.32797344,0.00022739,2]
[339695265,1727869883587,-500.0,0.00022739,2]
[339695266,1727869883599,-6175.19,0.00022739,2]
[339695267,1727869883614,-500.0,0.00022739,2]
[339695268,1727869883628,-500.0,0.00022739,2]
[339695269,1727869883643,-1838.42,0.00022739,2]
[339695270,1727869883658,-507.21,0.00022739,2]
[339695271,1727869883674,-2667.03,0.00022739,2]
[339695272,1727869883690,-500.0,0.00022739,2]
[339695273,1727869883704,-500.0,0.00022739,2]
[339695274,1727869883717,-500.0,0.00022739,2]
[339695275,1727869883734,-1672.93,0.00022739,2]
[339695276,1727869883748,-500.0,0.00022739,2]
[339695277,1727869883762,-500.0,0.00022739,2]
[339695278,1727869883774,-346.94557587,0.00022739,2]
[339695279,1727869883788,-1041.73,0.00022739,2]
[339695280,1727869883802,-608.41,0.00022739,2]
[339695281,1727869883817,-529.98,0.00022739,7]
[339695282,1727869883831,-500.0,0.00022739,2]
[339695283,1727869883847,-5053.49,0.00022739,2]
[339695284,1727869883863,-500.0,0.00022739,2]
[339695285,1727869883874,-2022.31,0.00022739,2]
[339695286,1727869883885,-500.0,0.00022739,2]
[339695287,1727869883897,-500.0,0.00022739,2]
[339695288,1727869883912,-500.0,0.00022739,2]
[339695289,1727869883928,-500.0,0.00022739,2]
[339695290,1727869883942,-500.0,0.00022739,2]
[339695291,1727869883957,-500.0,0.00022739,2]
[339695292,1727869883974,-500.0,0.00022739,2]
[339695293,1727869883990,-500.0,0.00022739,2]
[339695294,1727869884004,-1730.57,0.00022739,2]
[339695295,1727869884021,-517.9849231,0.00022739,2]
[339695296,1727869884035,-500.0,0.00022739,2]
[339695297,1727869884048,-538.29,0.00022739,30]
[339695298,1727869884061,-4318.93,0.00022739,2]
[339695299,1727869884074,-2246.33,0.00022739,2]
[339695300,1727869884087,-1020.6,0.00022739,2]
[339695301,1727869884102,-500.0,0.00022739,2]
[339695302,1727869884117,-500.0,0.00022739,2]
[339695303,1727869884131,-500.0,0.00022739,2]
[339695304,1727869884144,-500.0,0.00022739,2]
[339695305,1727869884157,-500.0,0.00022739,2]
[339695306,1727869884171,-500.0,0.00022739,2]
[339695307,1727869884184,-3153.21,0.00022739,2]
[339695308,1727869884197,-500.0,0.00022739,2]
[339695309,1727869884210,-506.11,0.00022739,2]
[339695310,1727869884224,-712.16,0.00022739,2]
[339695311,1727869884239,-985.3,0.00022739,2]
[339695312,1727869884252,-2970.4,0.00022739,2]
[339695313,1727869884266,-2465.15,0.00022739,2]
[339695314,1727869884279,-2086.78,0.00022739,2]
[339695315,1727869884292,-500.0,0.00022739,2]
[339695316,1727869884305,-500.0,0.00022739,2]
[339695317,1727869884318,-1090.88,0.00022739,2]
[339695318,1727869884331,-500.0,0.00022739,2]
[339695319,1727869884343,-500.0,0.00022739,2]
[339695320,1727869884356,-500.0,0.00022739,2]
[339695321,1727869884368,-500.0,0.00022739,2]
[339695322,1727869884382,-895.01,0.00022739,2]
[339695323,1727869884394,-777.65,0.00022739,2]
[339695324,1727869884407,-3118.93,0.00022739,2]
[339695325,1727869884419,-987.1,0.00022739,2]
[339695326,1727869884431,-500.0,0.00022739,2]
[339695327,1727869884444,-500.0,0.00022739,2]
[339695328,1727869884456,-1136.65,0.00022739,2]
[339695329,1727869884469,-500.0,0.00022739,2]
[339695330,1727869884480,-1467.44,0.00022739,2]
[339695331,1727869884492,-1162.12,0.00022739,2]
[339695332,1727869884505,-500.0,0.00022739,2]
[339695333,1727869884517,-506.89,0.00022739,2]
[339695334,1727869884530,-500.0,0.00022739,2]
[339695335,1727869884542,-500.0,0.00022739,2]
[339695336,1727869884554,-500.0,0.00022739,2]
[339695337,1727869884567,-500.0,0.00022739,2]
[339695338,1727869884579,-579.97,0.00022739,2]
[339695339,1727869884591,-500.0,0.00022739,2]
[339695340,1727869884603,-940.83,0.00022739,2]
[339695341,1727869884615,-500.0,0.00022739,2]
[339695342,1727869884629,-500.0,0.00022739,2]
[339695343,1727869884641,-500.0,0.00022739,2]
[339695344,1727869884653,-500.0,0.00022739,2]
[339695345,1727869884665,-1971.31,0.00022739,2]
[339695346,1727869884678,-500.0,0.00022739,2]
[339695347,1727869884690,-500.0,0.00022739,2]
[339695348,1727869884702,-1121.76,0.00022739,2]
[339695349,1727869884714,-623.67,0.00022739,2]
[339695350,1727869884727,-2765.39,0.00022739,2]
[339695351,1727869884750,-1361.74,0.00022739,2]
[339695352,1727869884762,-965.87,0.00022739,2]
[339695353,1727869884774,-2074.26,0.00022739,2]
[339695354,1727869884786,-1445.85,0.00022739,2]
[339695355,1727869884797,-771.13,0.00022739,2]
[339695356,1727869884809,-500.0,0.00022739,2]
[339695357,1727869884820,-500.0,0.00022739,2]
[339695358,1727869884833,-500.0,0.00022739,2]
[339695359,1727869884844,-998.13,0.00022739,2]
[339695360,1727869884856,-2391.46,0.00022739,2]
[339695361,1727869884868,-2900.51,0.00022739,2]
[339695362,1727869884881,-2290.5,0.00022739,2]
[339695363,1727869884893,-504.51485346,0.00022739,2]
[339695364,1727869884905,-500.0,0.00022739,2]
[339695365,1727869884917,-500.0,0.00022739,2]
[339695366,1727869884931,-751.75,0.00022739,2]
[339695367,1727869884946,-500.0,0.00022739,2]
[339695368,1727869884958,-500.0,0.00022739,2]
[339695369,1727869884971,-1477.46,0.00022739,2]
[339695370,1727869884992,-500.0,0.00022739,2]
[339695371,1727869885004,-1360.75,0.00022739,2]
[339695372,1727869885016,-500.0,0.00022739,2]
[339695373,1727869885030,-1781.17,0.00022739,2]
[339695374,1727869885042,-1434.88,0.00022739,2]
[339695375,1727869885056,-1019.35,0.00022739,2]
[339695376,1727869885069,-500.0,0.00022739,2]
[339695377,1727869885081,-700.73,0.00022739,2]
[339695378,1727869885092,-500.0,0.00022739,2]
[339695379,1727869885103,-864.57,0.00022739,2]
[339695380,1727869885114,-500.0,0.00022739,2]
[339695381,1727869885125,-1589.64,0.00022739,2]
[339695382,1727869885136,-924.55,0.00022739,2]
[339695383,1727869885147,-500.0,0.00022739,2]
[339695384,1727869885158,-500.0,0.00022739,2]
[339695385,1727869885169,-3116.69,0.00022739,2]
[339695386,1727869885180,-1543.89,0.00022739,2]
[339695387,1727869885191,-4404.8,0.00022739,2]
[339695388,1727869885203,-19290.58,0.00022739,2]
[339695389,1727869885217,-560.29,0.00022739,2]
[339695390,1727869885234,-614.13,0.00022739,2]
[339695391,1727869885247,-2831.71,0.00022739,2]
[339695392,1727869885259,-1040.87,0.00022739,2]
[339695393,1727869885271,-1535.99,0.00022739,2]
[339695394,1727869885283,-505.6994237,0.00022739,2]
[339695395,1727869885295,-500.0,0.00022739,2]
[339695396,1727869885307,-1223.94,0.00022739,2]
[339695397,1727869885319,-610.3,0.00022739,2]
[339695398,1727869885331,-500.0,0.00022739,2]
[339695399,1727869885342,-446.32341954,0.00022739,2]
[339695400,1727869885354,-658.85,0.00022739,2]
[339695401,1727869885366,-500.0,0.00022739,2]
[339695402,1727869885377,-551.95,0.00022739,2]
[339695403,1727869885389,-1515.98,0.00022739,2]
[339695404,1727869885401,-729.29,0.00022739,2]
[339695405,1727869885413,-1288.21,0.00022739,2]
[339695406,1727869885424,-579.63,0.00022739,2]
[339695407,1727869885444,-500.0,0.00022739,2]
[339695408,1727869885457,-1133.36,0.00022739,2]
[339695409,1727869885469,-1772.2,0.00022739,2]
[339695410,1727869885484,-500.0,0.00022739,2]
[339695411,1727869885496,-507.18,0.00022739,2]
[339695412,1727869885508,-1312.48,0.00022739,2]
[339695413,1727869885520,-500.0,0.00022739,2]
[339695414,1727869885531,-701.64,0.00022739,2]
[339695415,1727869885543,-665.99,0.00022739,2]
[339695416,1727869885555,-598.59,0.00022739,2]
[339695417,1727869885567,-808.47,0.00022739,2]
[339695418,1727869885579,-500.0,0.00022739,2]
[339695419,1727869885591,-513.44,0.00022739,2]
[339695420,1727869885603,-500.0,0.00022739,2]
[339695421,1727869885615,-500.0,0.00022739,2]
[339695422,1727869885627,-1157.26,0.00022739,2]
[339695423,1727869885639,-647.94,0.00022739,2]
[339695424,1727869885651,-231.42766971,0.00022739,2]
[339695425,1727869885663,-587.79,0.00022739,2]
[339695426,1727869885675,-500.0,0.00022739,2]
[339695427,1727869885686,-500.0,0.00022739,2]
[339695428,1727869885698,-2470.24,0.00022739,2]
[339695429,1727869885709,-553.22,0.00022739,2]
[339695430,1727869885721,-448.3166441,0.00022739,2]
[339695431,1727869885733,-934.27,0.00022739,2]
[339695432,1727869885744,-727.36,0.00022739,2]
[339695433,1727869885757,-500.0,0.00022739,2]
[339695434,1727869885769,-648.66,0.00022739,2]
[339695435,1727869885780,-521.34,0.00022739,2]
[339695436,1727869885792,-849.78,0.00022739,2]
[339695437,1727869885803,-1657.63,0.00022739,2]
[339695438,1727869885814,-500.0,0.00022739,2]
[339695439,1727869885826,-3112.95,0.00022739,2]
[339695440,1727869885837,-1267.73,0.00022739,2]
[339695441,1727869885849,-500.0,0.00022739,2]
[339695442,1727869885860,-678.87,0.00022739,2]
[339695443,1727869885871,-515.08,0.00022739,2]
[339695444,1727869885883,-812.97,0.00022739,2]
[339695445,1727869885895,-575.05,0.00022739,2]
[339695446,1727869885907,-1574.1,0.00022739,2]
[339695447,1727869885918,-993.91,0.00022739,2]
[339695448,1727869885933,-1526.73,0.00022739,2]
[339695449,1727869885944,-500.0,0.00022739,2]
[339695450,1727869885956,-1049.52,0.00022739,2]
[339695451,1727869885967,-500.0,0.00022739,2]
[339695452,1727869885979,-500.0,0.00022739,2]
[339695453,1727869885991,-640.31128128,0.00022739,2]
[339695454,1727869886006,-1970.75,0.00022739,2]
[339695455,1727869886019,-518.95,0.00022739,2]
[339695456,1727869886031,-500.0,0.00022739,2]
[339695457,1727869886042,-500.0,0.00022739,2]
[339695458,1727869886054,-3520.63,0.00022739,2]
[339695459,1727869886065,-530.32,0.00022739,2]
[339695460,1727869886077,-500.0,0.00022739,2]
[339695461,1727869886089,-1403.56,0.00022739,2]
[339695462,1727869886101,-500.0,0.00022739,2]
[339695463,1727869886112,-500.0,0.00022739,2]
[339695464,1727869886122,-500.0,0.00022739,2]
[339695465,1727869886134,-1522.21,0.00022739,2]
[339695466,1727869886146,-500.0,0.00022739,2]
[339695467,1727869886158,-3091.29,0.00022739,2]
[339695468,1727869886169,-198.27727206,0.00022739,2]
[339695469,1727869886181,-500.0,0.00022739,2]
[339695470,1727869886192,-1354.75,0.00022739,2]
[339695471,1727869886204,-500.0,0.00022739,2]
[339695472,1727869886215,-500.0,0.00022739,2]
[339695473,1727869886227,-500.0,0.00022739,2]
[339695474,1727869886239,-711.34,0.00022739,2]
[339695475,1727869886250,-988.48,0.00022739,2]
[339695476,1727869886262,-825.42,0.00022739,2]
[339695477,1727869886274,-876.88,0.00022739,2]
[339695478,1727869886286,-1618.37,0.00022739,2]
[339695479,1727869886298,-833.27,0.00022739,2]
[339695480,1727869886309,-5815.04,0.00022739,2]
[339695481,1727869886321,-500.0,0.00022739,2]
[339695482,1727869886332,-1031.29,0.00022739,2]
[339695483,1727869886344,-500.0,0.00022739,2]
[339695484,1727869886355,-500.0,0.00022739,2]
[339695485,1727869886367,-1965.03,0.00022739,2]
[339695486,1727869886378,-500.0,0.00022739,2]
[339695487,1727869886390,-3064.09,0.00022739,2]
[339695488,1727869886402,-4974.41,0.00022739,2]
[339695489,1727869886414,-823.54,0.00022739,2]
[339695490,1727869886426,-844.64,0.00022739,2]
[339695491,1727869886438,-2331.34,0.00022739,2]
[339695492,1727869886450,-1132.69,0.00022739,2]
[339695493,1727869886462,-552.96,0.00022739,2]
[339695494,1727869886474,-500.0,0.00022739,2]
[339695495,1727869886487,-2974.28,0.00022739,2]
[339695496,1727869886500,-1148.88,0.00022739,2]
[339695497,1727869886513,-500.0,0.00022739,2]
[339695498,1727869886524,-968.97,0.00022739,2]
[339695499,1727869886536,-500.0,0.00022739,2]
[339695500,1727869886548,-3001.6,0.00022739,2]
[339695501,1727869886560,-500.0,0.00022739,2]
[339695502,1727869886571,-1264.99,0.00022739,2]
[339695503,1727869886584,-500.0,0.00022739,2]
[339695504,1727869886596,-500.0,0.00022739,2]
[339695505,1727869886608,-726.05,0.00022739,2]
[339695506,1727869886620,-500.0,0.00022739,2]
[339695507,1727869886633,-3619.58,0.00022739,2]
[339695508,1727869886645,-604.79,0.00022739,2]
[339695509,1727869886657,-1051.14,0.00022739,2]
[339695510,1727869886670,-500.0,0.00022739,2]
[339695511,1727869886681,-3602.22,0.00022739,2]
[339695512,1727869886693,-2687.13,0.00022739,2]
[339695513,1727869886704,-1390.28,0.00022739,2]
[339695514,1727869886716,-1118.51,0.00022739,2]
[339695515,1727869886727,-5879.71,0.00022739,2]
[339695516,1727869886740,-526.33,0.00022739,2]
[339695517,1727869886752,-500.0,0.00022739,2]
[339695518,1727869886763,-500.0,0.00022739,2]
[339695519,1727869886775,-816.38,0.00022739,2]
[339695520,1727869886787,-500.0,0.00022739,2]
[339695521,1727869886798,-4254.33,0.00022739,2]
[339695522,1727869886811,-4061.83,0.00022739,2]
[339695523,1727869886823,-1959.33,0.00022739,2]
[339695524,1727869886834,-500.0,0.00022739,2]
[339695525,1727869886846,-1345.45,0.00022739,2]
[339695526,1727869886858,-500.0,0.00022739,2]
[339695527,1727869886869,-500.0,0.00022739,2]
[339695528,1727869886881,-1447.78,0.00022739,2]
[339695529,1727869886892,-1075.93,0.00022739,2]
[339695530,1727869886904,-500.0,0.00022739,2]
[339695531,1727869886916,-1481.56,0.00022739,2]
[339695532,1727869886929,-519.77,0.00022739,2]
[339695533,1727869886940,-500.0,0.00022739,2]
[339695534,1727869886952,-500.0,0.00022739,2]
[339695535,1727869886963,-4444.78,0.00022739,2]
[339695536,1727869886976,-1469.09,0.00022739,2]
[339695537,1727869886990,-626.6,0.00022739,2]
[339695538,1727869887004,-2996.05,0.00022739,2]
[339695539,1727869887015,-3273.31,0.00022739,2]
[339695540,1727869887027,-613.77,0.00022739,2]
[339695541,1727869887038,-500.0,0.00022739,2]
[339695542,1727869887050,-500.0,0.00022739,2]
[339695543,1727869887062,-573.70477724,0.00022739,2]
[339695544,1727869887073,-500.0,0.00022739,2]
[339695545,1727869887084,-958.03,0.00022739,2]
[339695546,1727869887096,-707.05,0.00022739,2]
[339695547,1727869887107,-500.0,0.00022739,2]
[339695548,1727869887119,-500.0,0.00022739,2]
[339695549,1727869887130,-500.0,0.00022739,2]
[339695550,1727869887142,-3800.36,0.00022739,2]
[339695551,1727869887153,-528.33,0.00022739,2]
[339695552,1727869887165,-500.0,0.00022739,2]
[339695553,1727869887178,-10132.33,0.00022739,2]
[339695554,1727869887189,-1216.89,0.00022739,2]
[339695555,1727869887201,-500.0,0.00022739,2]
[339695556,1727869887212,-542.56,0.00022739,2]
[339695557,1727869887224,-500.0,0.00022739,2]
[339695558,1727869887237,-1117.3,0.00022739,2]
[339695559,1727869887248,-1033.85,0.00022739,2]
[339695560,1727869887260,-1287.56,0.00022739,2]
[339695561,1727869887272,-500.0,0.00022739,2]